bitfinex/quotes_ETHUSD_20241231
["timestamp","ask_amount","ask_price","bid_price","bid_amount"]
[1735661786582,0.1700693,3420.1,3419.1,0.8309]
[1735661786583,0.1700693,3420.1,3419.5,0.8309]
[1735661789552,0.1700693,3420.1,3419.3,2.92456]
[1735661789713,0.1700693,3420.1,3419.2,0.8309]
[1735661789920,0.1700693,3420.1,3419.2,3.75547]
[1735661790121,0.1700693,3420.1,3419.3,2.92455]
[1735661790455,0.1700693,3420.1,3419.4,0.375545]
[1735661790964,3.0939893,3420.1,3419.4,0.375545]
[1735661791257,0.1700693,3420.1,3419.4,0.375545]
[1735661791402,0.1700693,3420.1,3419.2,0.8309]
[1735661791607,0.1700693,3420.1,3419.3,2.9245]
[1735661791820,0.1700693,3420.1,3419.4,0.8309]
[1735661792028,3.0939893,3420.1,3419.4,0.8309]
[1735661792266,0.1700693,3420.1,3419.4,0.8309]
[1735661793110,0.1700693,3420.1,3419.4,3.75536]
[1735661794147,0.1700693,3420.1,3419.5,2.92438]
[1735661794322,0.1700693,3420.1,3419.6,0.375528]
[1735661794524,0.58020647,3419.7,3419.6,0.375528]
[1735661795404,0.58020647,3419.7,3419.4,0.8309]
[1735661795605,0.1700693,3420.1,3419.4,0.8309]
[1735661801388,0.1700693,3420.1,3419.5,2.92438]
[1735661801811,0.1700693,3420.1,3419.6,2.92431]
[1735661802028,0.1700693,3420.1,3419.7,3.74559]
[1735661802315,0.1700693,3420.1,3419.9,2.92406]
[1735661802815,0.1700693,3420.1,3419.8,0.374559]
[1735661803367,0.1700693,3420.1,3419.7,0.8214]
[1735661803572,0.1700693,3420.1,3419.1,0.8214]
[1735661803817,1.0031693,3420.1,3419.1,0.8214]
[1735661804024,3.9270693,3420.1,3419.1,0.8214]
[1735661804241,3.9270693,3420.1,3419.2,3.0]
[1735661804825,3.9270693,3420.1,3419.2,2.92462]
[1735661805722,3.81619127,3420.1,3419.1,0.8214]
[1735661806092,2.92432,3419.6,3418.8,0.8214]
[1735661806423,2.92476,3419.1,3418.5,0.8214]
[1735661806756,2.92476,3419.1,3418.2,0.373167]
[1735661806757,2.92494,3418.9,3418.2,1.194567]
[1735661807049,3.75811,3418.8,3418.2,0.373167]
[1735661807226,0.8331,3419.3,3418.3,0.8214]
[1735661807427,2.92492,3418.9,3418.3,0.8214]
[1735661807796,0.8331,3418.8,3417.8,2.92582]
[1735661807995,3.75812,3418.8,3417.8,2.92582]
[1735661808192,0.8331,3418.8,3417.9,2.92576]
[1735661808390,0.8331,3418.8,3418.0,3.374716]
[1735661808624,0.8331,3418.8,3418.0,0.374716]
[1735661808826,3.75811,3418.8,3418.0,0.374716]
[1735661809991,2.92464,3419.3,3418.2,0.8214]
[1735661810506,0.8331,3419.4,3418.6,0.8214]
[1735661810743,2.92435,3419.6,3418.6,3.7465]
[1735661811048,2.92451,3419.4,3418.7,0.37465]
[1735661811592,2.92458,3419.3,3418.7,0.37465]
[1735661811841,2.92458,3419.3,3418.6,0.8214]
[1735661812250,0.8331,3419.2,3418.6,0.8214]
[1735661812543,0.8331,3419.0,3417.7,0.8214]
[1735661812847,0.8331,3419.0,3417.8,0.38880279]
[1735661813142,2.92491,3418.9,3417.8,0.38880279]
[1735661813291,2.92461,3419.3,3417.2,1.22665116]
[1735661813292,2.81302197,3418.5,3417.2,1.22665116]
[1735661813497,2.92559,3418.2,3417.3,0.8214]
[1735661813921,0.8331,3418.4,3417.3,3.74766]
[1735661813922,3.75846,3418.4,3417.3,3.74766]
[1735661814124,2.92543,3418.3,3417.3,3.74766]
[1735661815053,0.8331,3418.4,3417.4,2.92617]
[1735661815349,0.8331,3418.4,3417.5,0.374757]
[1735661815751,0.8331,3418.4,3417.5,3.300847]
[1735661816457,0.7744,3418.7,3417.6,0.8177]
[1735661816743,0.7744,3418.7,3417.8,2.9258]
[1735661817295,0.7744,3418.7,3417.6,0.8177]
[1735661817296,3.69952,3418.7,3417.6,0.8177]
[1735661817496,2.92527,3418.5,3417.7,0.374373]
[1735661817753,2.92527,3418.5,3417.6,0.8177]
[1735661818646,2.92527,3418.5,3417.3,0.8227]
[1735661818647,0.8305,3418.4,3417.3,0.8227]
[1735661818854,2.92553,3418.2,3417.3,0.8227]
[1735661819052,2.92553,3418.2,3417.3,3.8227]
[1735661819356,0.8305,3418.4,3417.4,0.674906]
[1735661819556,3.75585,3418.4,3417.4,2.92617]
[1735661820325,2.92519,3418.6,3417.6,0.8227]
[1735661820828,1.41178962,3419.0,3417.9,0.8227]
[1735661821149,2.92506,3418.8,3417.9,0.8227]
[1735661821348,1.41178962,3419.0,3417.9,3.74842]
[1735661821647,2.92495,3418.9,3417.9,4.123262]
[1735661821880,2.92518,3418.6,3417.9,1.197542]
[1735661822083,1.41178962,3419.0,3417.9,1.197542]
[1735661822288,2.92501,3418.8,3417.9,1.197542]
[1735661822588,2.92524,3418.6,3417.9,0.8227]
[1735661822992,2.92529,3418.5,3417.9,0.8227]
[1735661823133,1.41178962,3419.0,3417.9,0.8227]
[1735661823337,0.8305,3418.5,3417.9,0.8227]
[1735661823536,2.92543,3418.3,3417.9,0.8227]
[1735661824072,3.75577,3418.5,3417.9,0.8227]
[1735661824239,3.75556,3418.8,3417.9,0.8227]
[1735661824669,2.9246,3419.3,3418.2,0.8227]
[1735661824878,2.92447,3419.5,3418.6,0.8227]
[1735661825054,2.44476925,3419.6,3418.6,3.74783]
[1735661825255,2.44476925,3419.6,3418.7,0.8227]
[1735661825599,2.44476925,3419.6,3419.3,0.8227]
[1735661825890,45.0,3420.0,3419.4,0.374731]
[1735661826194,2.92409,3419.9,3419.3,0.8227]
[1735661826546,45.0,3420.0,3419.3,0.8227]
[1735661827643,47.92398,3420.0,3419.3,0.8227]
[1735661828492,2.92432,3419.6,3418.7,0.8227]
[1735661828689,2.92432,3419.6,3418.8,0.374785]
[1735661829422,2.92442,3419.5,3418.8,0.374785]
[1735661829577,2.92442,3419.5,3418.7,0.8227]
[1735661829974,0.8305,3419.8,3418.7,0.8227]
[1735661830170,0.8305,3419.8,3418.8,2.92497]
[1735661830374,2.92427,3419.7,3418.7,3.8227]
[1735661830806,2.92408,3419.9,3418.7,0.8227]
[1735661831175,45.0,3420.0,3418.8,2.92498]
[1735661831405,2.92422,3419.8,3418.9,0.374768]
[1735661831822,2.92426,3419.7,3418.9,0.374768]
[1735661832722,2.92435,3419.6,3418.9,0.374768]
[1735661832919,0.7508,3419.5,3418.7,0.8227]
[1735661833584,2.92466,3419.2,3418.7,0.8227]
[1735661834416,2.92473,3419.2,3418.7,0.8227]
[1735661834809,2.92473,3419.2,3417.7,2.9259]
[1735661834810,2.925,3418.8,3417.7,2.9259]
[1735661834997,5.73788197,3419.0,3417.9,2.92576]
[1735661835183,2.92485,3419.0,3418.0,3.7849]
[1735661835377,2.92485,3419.0,3418.0,3.71057]
[1735661836092,0.59457857,3419.1,3418.0,0.7849]
[1735661836301,2.92487,3419.0,3418.0,3.7849]
[1735661836620,2.9247,3419.2,3418.4,0.7849]
[1735661836950,2.92476,3419.1,3418.4,0.7849]
[1735661837819,2.92484,3419.0,3418.4,0.7849]
[1735661838220,2.92518,3418.6,3418.1,0.7935]
[1735661838686,2.92529,3418.5,3418.1,0.7935]
[1735661839988,2.92491,3418.9,3417.2,3.0]
[1735661839989,2.92534,3418.4,3417.3,0.7935]
[1735661840195,2.92552,3418.2,3417.3,0.7935]
[1735661841418,2.81302197,3418.4,3417.3,0.7935]
[1735661841797,2.92558,3418.2,3417.3,0.7935]
[1735661841997,2.92558,3418.2,3417.4,0.37935]
[1735661842236,0.59751129,3418.6,3417.5,0.7935]
[1735661842615,2.92545,3418.3,3417.5,0.7935]
[1735661843339,0.59751129,3418.6,3417.5,0.7935]
[1735661843340,2.92571,3418.0,3417.5,0.7935]
[1735661844341,2.81302197,3418.4,3417.5,0.7935]
[1735661844500,2.81302197,3418.1,3416.7,0.8058]
[1735661844940,2.92623,3417.4,3416.7,0.8058]
[1735661845638,5.73889197,3417.8,3416.7,0.8058]
[1735661845862,2.92647,3417.1,3416.7,0.8058]
[1735661846061,2.92666,3416.9,3416.4,0.8058]
[1735661846220,0.7693,3417.0,3416.4,0.8058]
[1735661846420,2.92698,3416.5,3416.3,1.22665116]
[1735661846624,2.92677,3416.8,3415.7,2.03245116]
[1735661846822,2.92733,3416.1,3415.7,2.03245116]
[1735661847044,2.92721,3416.3,3415.7,2.03245116]
[1735661847449,0.7693,3416.4,3415.7,2.03245116]
[1735661847632,1.193915,3416.4,3415.7,2.03245116]
[1735661848052,2.92734,3416.1,3415.7,2.03245116]
[1735661848362,2.92734,3416.1,3415.8,0.04295637]
[1735661848564,2.92775,3415.6,3414.5,2.39906716]
[1735661848765,2.9276,3415.8,3414.6,1.52257239]
[1735661848948,2.9276,3415.8,3414.7,0.8058]
[1735661849150,2.9276,3415.8,3414.9,0.8058]
[1735661849734,3.0,3416.7,3414.8,0.8058]
[1735661849735,0.7693,3416.7,3414.8,0.8058]
[1735661849937,0.7693,3416.7,3415.3,0.8058]
[1735661850156,2.92713,3416.4,3415.3,0.8058]
[1735661850849,0.7693,3416.7,3415.4,2.92791]
[1735661851063,2.92713,3416.4,3415.5,0.8058]
[1735661851367,2.9271,3416.4,3415.5,0.8058]
[1735661851525,2.9271,3416.4,3415.5,1.179185]
[1735661852011,2.92729,3416.2,3415.5,0.8058]
[1735661852139,0.55,3416.6,3415.5,0.8058]
[1735661852340,2.92764,3415.8,3414.6,3.64535239]
[1735661852556,2.92774,3415.7,3414.7,0.8058]
[1735661852778,2.92748,3415.9,3414.8,0.74511524]
[1735661852929,2.92764,3415.8,3414.8,0.74511524]
[1735661853469,2.92725,3416.2,3415.1,2.92817]
[1735661853670,0.7693,3416.4,3415.2,0.8058]
[1735661853828,2.92734,3416.1,3415.2,0.8058]
[1735661854029,2.92734,3416.1,3415.2,1.179211]
[1735661854430,2.92741,3416.0,3415.2,1.179211]
[1735661854631,1.35415231,3416.4,3415.2,1.179211]
[1735661854632,2.92764,3415.8,3415.2,0.8058]
[1735661855270,2.92766,3415.7,3415.2,0.8058]
[1735661856079,2.92758,3415.8,3415.2,0.8058]
[1735661856878,0.55,3416.3,3415.2,0.8058]
[1735661857075,2.92742,3416.0,3415.2,0.8058]
[1735661858066,2.92753,3415.9,3415.2,0.8058]
[1735661858269,0.292753,3415.9,3415.2,0.8058]
[1735661858581,2.92784,3415.5,3415.2,0.8058]
[1735661858881,2.92757,3415.8,3415.2,0.8058]
[1735661859079,2.9279,3415.5,3415.2,0.8058]
[1735661859281,4.13407306,3415.8,3414.9,0.7606]
[1735661859525,2.928,3415.3,3414.9,0.7606]
[1735661861053,3.37033261,3415.7,3414.9,0.7606]
[1735661861054,0.44268261,3415.7,3414.9,0.7606]
[1735661861245,2.92812,3415.2,3414.0,0.7606]
[1735661861569,0.44268261,3415.7,3414.1,0.03235943]
[1735661861570,2.92788,3415.5,3414.1,0.03235943]
[1735661861770,3.44268261,3415.7,3414.1,0.03235943]
[1735661861771,2.92834,3415.0,3414.1,0.03235943]
[1735661862083,2.92835,3414.9,3414.1,0.03235943]
[1735661862483,0.7691,3415.2,3414.1,0.03235943]
[1735661862650,2.92819,3415.1,3414.1,0.03235943]
[1735661862851,2.92819,3415.1,3414.2,0.37929594]
[1735661863073,2.92819,3415.1,3414.3,0.02999145]
[1735661863314,2.92819,3415.1,3414.4,0.7606]
[1735661863594,2.92819,3415.1,3414.4,0.80118142]
[1735661864473,2.92802,3415.3,3414.4,0.80118142]
[1735661864786,2.92809,3415.2,3414.4,0.7606]
[1735661864985,2.92809,3415.2,3414.4,1.13666]
[1735661865291,2.92809,3415.2,3414.5,0.04054181]
[1735661865671,2.92817,3415.1,3414.5,0.04054181]
[1735661865865,2.92828,3415.0,3414.5,0.04054181]
[1735661866068,2.92847,3414.8,3414.5,0.04054181]
[1735661866254,2.92847,3414.8,3414.4,0.7606]
[1735661866454,2.92853,3414.7,3414.4,0.7606]
[1735661866681,2.92853,3414.7,3413.6,0.7606]
[1735661866883,0.292847,3414.8,3413.6,0.7606]
[1735661867085,2.81746132,3414.7,3413.7,0.0436738]
[1735661867292,3.31654083,3414.6,3413.6,0.7606]
[1735661867455,2.92899,3414.2,3413.6,0.7606]
[1735661867660,2.92899,3414.2,3413.7,0.0436738]
[1735661867861,2.92921,3413.9,3413.7,0.0436738]
[1735661868085,2.92928,3413.8,3413.7,0.0436738]
[1735661868289,2.92928,3413.8,3413.6,0.7606]
[1735661868290,2.92937,3413.7,3413.6,0.7606]
[1735661868456,0.292928,3413.8,3413.3,0.7606]
[1735661869099,2.92963,3413.4,3412.2,0.7606]
[1735661869308,2.92963,3413.4,3412.4,0.7606]
[1735661869800,0.7691,3413.7,3412.5,0.04027593]
[1735661869801,2.92973,3413.3,3412.5,0.04027593]
[1735661870405,0.7691,3413.7,3412.5,0.04027593]
[1735661870602,2.92969,3413.4,3412.5,0.04027593]
[1735661870826,2.92973,3413.3,3412.5,0.04027593]
[1735661871671,3.37079923,3413.4,3412.5,0.04027593]
[1735661871873,3.37079923,3413.4,3412.4,0.7606]
[1735661872085,2.92989,3413.1,3412.5,0.04064797]
[1735661872376,3.37079923,3413.4,3412.5,0.04064797]
[1735661872615,3.37079923,3413.4,3412.4,0.7606]
[1735661872822,2.92995,3413.1,3412.4,0.7606]
[1735661873030,3.37079923,3413.4,3412.5,0.04064797]
[1735661873210,2.92988,3413.2,3412.5,0.04064797]
[1735661873376,3.37079923,3413.4,3412.4,0.7606]
[1735661873573,3.96004859,3413.8,3412.4,0.7606]
[1735661873785,6.30015923,3413.8,3412.7,2.93015]
[1735661874109,6.30015923,3413.8,3412.8,0.8376422]
[1735661874275,2.92938,3413.7,3412.8,0.8376422]
[1735661874477,2.92938,3413.7,3412.8,0.8003]
[1735661874676,2.92938,3413.7,3412.9,0.03730616]
[1735661874878,2.92947,3413.6,3412.9,0.03730616]
[1735661875691,2.92971,3413.4,3412.9,0.03730616]
[1735661875893,3.66377023,3413.4,3412.9,0.03730616]
[1735661876088,2.92997,3413.0,3412.9,0.03730616]
[1735661876290,2.92997,3413.0,3412.4,0.8003]
[1735661876539,2.92997,3413.0,3412.5,0.04085069]
[1735661877794,3.37079923,3413.0,3412.5,0.04085069]
[1735661878099,3.37079923,3413.0,3412.4,0.8003]
[1735661878100,2.93008,3412.9,3412.4,0.8003]
[1735661878412,2.93008,3412.9,3412.5,0.04085069]
[1735661879178,3.37079923,3413.0,3412.5,0.04085069]
[1735661880275,6.30047923,3413.4,3412.1,3.0]
[1735661880475,6.30047923,3413.4,3412.3,0.8003]
[1735661880476,2.92972,3413.3,3412.3,0.8003]
[1735661880710,2.92972,3413.3,3412.4,0.04089034]
[1735661881117,0.59959627,3413.6,3412.8,0.8003]
[1735661881440,3.37079923,3413.8,3412.8,3.73039]
[1735661881731,6.30008923,3413.8,3412.9,0.83767989]
[1735661882849,3.37079923,3413.8,3412.9,3.76771989]
[1735661883051,0.5979508,3414.0,3413.0,0.8003]
[1735661883362,2.92929,3413.8,3413.0,0.8003]
[1735661883552,2.92929,3413.8,3413.1,0.04029861]
[1735661883851,2.9295,3413.6,3413.1,0.04029861]
[1735661883992,3.72352331,3413.8,3413.1,0.04029861]
[1735661884193,2.92937,3413.7,3413.0,0.8003]
[1735661884389,3.72352331,3413.8,3413.2,0.04019816]
[1735661884731,3.72352331,3413.8,3413.0,0.8003]
[1735661884732,2.92967,3413.4,3413.0,0.8003]
[1735661885039,2.92974,3413.3,3413.0,0.8003]
[1735661885207,2.92937,3413.7,3412.4,0.8003]
[1735661885208,3.37079923,3413.4,3412.4,0.8003]
[1735661885394,3.37079923,3413.4,3412.4,1.473394]
[1735661885729,6.30045923,3413.4,3412.4,0.8003]
[1735661886309,2.92947,3413.6,3412.7,0.8003]
[1735661886496,2.92945,3413.7,3412.7,0.8003]
[1735661887126,3.37079923,3413.8,3412.9,0.8003]
[1735661887332,3.37079923,3413.8,3413.0,0.373042]
[1735661888102,2.92947,3413.6,3413.1,0.8003]
[1735661888515,6.30010923,3413.8,3413.1,0.8003]
[1735661888734,3.5271008,3414.0,3413.1,0.8003]
[1735661888892,2.92915,3414.0,3413.1,1.173325]
[1735661889532,3.37079923,3414.2,3413.1,0.8003]
[1735661889835,2.92871,3414.5,3413.4,2.92955]
[1735661890005,2.92871,3414.5,3413.5,2.92953]
[1735661890206,2.92871,3414.5,3413.6,0.8173]
[1735661890435,2.92879,3414.4,3413.6,0.8173]
[1735661891029,2.92879,3414.4,3413.6,1.491999]
[1735661891407,2.92862,3414.6,3413.7,0.8173]
[1735661892016,2.81862225,3415.0,3413.8,0.8173]
[1735661892223,2.92852,3414.7,3413.8,0.8173]
[1735661892936,2.92838,3414.9,3413.5,0.8173]
[1735661893138,2.92838,3414.9,3413.9,2.97269068]
[1735661893294,2.92843,3414.8,3414.0,1.11456907]
[1735661894344,0.59333234,3415.0,3414.0,1.11456907]
[1735661894345,2.92833,3415.0,3414.0,1.11456907]
[1735661894544,2.92833,3415.0,3414.1,0.8173]
[1735661894702,2.92812,3415.2,3414.1,3.8173]
[1735661894902,2.92818,3415.1,3414.1,2.92902]
[1735661895241,2.92826,3415.0,3414.2,1.13992891]
[1735661895544,3.51080936,3415.2,3414.2,0.8173]
[1735661895746,2.92811,3415.2,3414.2,0.8173]
[1735661896046,2.92828,3415.0,3414.2,0.8173]
[1735661896343,3.71395,3415.4,3414.2,0.8173]
[1735661896344,3.36937802,3415.1,3414.2,0.8173]
[1735661896533,2.92852,3414.7,3414.2,0.8173]
[1735661896909,2.92837,3414.9,3414.2,0.8173]
[1735661897174,6.29757802,3415.1,3414.2,0.8173]
[1735661897344,2.92854,3414.7,3414.2,0.8173]
[1735661898759,2.92854,3414.7,3412.4,6.23369643]
[1735661898760,3.36937802,3414.7,3413.4,0.8173]
[1735661898902,2.92892,3414.3,3413.4,0.8173]
[1735661899408,2.92878,3414.4,3413.5,0.8173]
[1735661899721,2.92888,3414.3,3413.5,0.8173]
[1735661899905,3.55,3414.6,3413.5,0.8173]
[1735661900109,2.92877,3414.4,3413.5,0.8173]
[1735661900417,2.92883,3414.4,3413.5,0.8173]
[1735661900624,2.92889,3414.3,3413.5,0.8173]
[1735661900949,3.36937802,3414.3,3413.5,0.8173]
[1735661901151,0.55,3414.1,3412.5,0.8173]
[1735661901353,2.92911,3414.0,3412.5,0.8173]
[1735661901670,2.92953,3413.6,3412.7,0.8173]
[1735661902027,0.55,3414.1,3412.8,0.04801392]
[1735661902228,2.92972,3413.3,3412.8,0.04801392]
[1735661902652,2.92972,3413.3,3412.7,0.8173]
[1735661902854,2.92937,3413.7,3412.9,0.04796436]
[1735661902855,0.57732745,3413.7,3412.9,0.04796436]
[1735661903176,0.57732745,3413.7,3412.7,0.8173]
[1735661903177,2.9301,3412.9,3412.7,0.8173]
[1735661903382,2.9301,3412.9,3412.0,0.8173]
[1735661903383,0.786,3412.8,3412.0,0.8173]
[1735661903544,2.93066,3412.3,3412.0,0.8173]
[1735661903865,2.93069,3412.2,3412.0,0.8173]
[1735661904225,2.93084,3412.0,3411.7,0.8173]
[1735661905327,3.36937802,3412.1,3410.7,0.8057]
[1735661905526,2.93101,3411.8,3410.7,0.8057]
[1735661905742,3.36937802,3412.1,3410.7,0.8057]
[1735661905743,2.93109,3411.7,3410.8,0.373771]
[1735661906027,3.36937802,3411.7,3410.7,0.8057]
[1735661906262,2.93129,3411.5,3410.7,0.8057]
[1735661906427,6.30048802,3411.7,3410.7,0.8057]
[1735661906623,2.93118,3411.6,3410.7,0.8057]
[1735661907327,3.73869,3412.1,3410.7,0.8057]
[1735661907328,2.93107,3411.8,3410.7,0.8057]
[1735661907530,2.93107,3411.8,3410.8,0.673771]
[1735661908235,2.93092,3411.9,3410.9,3.73247]
[1735661908472,2.93076,3412.1,3411.0,3.8007]
[1735661909590,2.93086,3412.0,3411.0,3.8007]
[1735661909787,0.50037908,3413.1,3411.2,3.0]
[1735661909992,2.42547214,3413.2,3412.3,3.36937802]
[1735661910160,2.42547214,3413.4,3412.5,3.73109]
[1735661910360,2.42547214,3413.4,3412.5,0.8007]
[1735661910747,2.42547214,3413.4,3412.5,3.73109]
[1735661910949,2.92931,3413.8,3412.6,2.9303]
[1735661911359,2.92931,3413.8,3412.7,2.93015]
[1735661911990,2.92937,3413.7,3412.7,2.93015]
[1735661912553,2.92922,3413.9,3412.7,2.93015]
[1735661912752,2.92922,3413.9,3412.8,2.93009]
[1735661915293,0.59179702,3414.2,3413.6,2.92944]
[1735661915479,2.42547214,3414.8,3414.2,2.92886]
[1735661915683,2.42547214,3414.8,3414.1,2.92897]
[1735661915901,2.42547214,3414.8,3414.3,3.36937802]
[1735661916199,2.42547214,3414.8,3414.4,4.3663378]
[1735661916960,8.70712569,3415.9,3414.4,1.4376378]
[1735661916961,2.92791,3415.4,3414.4,1.4376378]
[1735661917162,2.92791,3415.4,3414.4,0.8007]
[1735661917403,0.58421364,3415.7,3414.4,3.72945]
[1735661917703,2.92783,3415.5,3414.4,3.72945]
[1735661918196,0.58421364,3415.7,3414.5,2.92868]
[1735661918197,3.51188364,3415.7,3414.5,2.92868]
[1735661918495,2.92778,3415.6,3414.5,2.92868]
[1735661918707,2.92778,3415.6,3414.4,0.8007]
[1735661918708,3.220618,3415.5,3414.4,0.8007]
[1735661920100,0.292778,3415.5,3414.4,0.8007]
[1735661920303,0.7657,3415.9,3414.4,0.8007]
[1735661920460,3.36937802,3416.0,3413.7,0.7511]
[1735661920461,2.92888,3414.3,3413.7,0.7511]
[1735661920812,3.47877,3414.4,3413.3,0.7511]
[1735661920956,3.47879,3414.4,3413.0,1.83193586]
[1735661921159,0.55,3414.2,3413.0,1.83193586]
[1735661921358,3.429159,3414.3,3412.9,3.19368115]
[1735661921359,2.92962,3413.5,3412.9,0.7511]
[1735661921596,2.92938,3413.7,3412.9,0.7511]
[1735661922366,2.92921,3413.9,3412.9,3.68115]
[1735661922563,2.92921,3413.9,3413.0,0.368115]
[1735661922768,0.429159,3414.3,3413.0,0.368115]
[1735661922986,0.8128,3414.5,3413.0,2.92996]
[1735661923191,2.92877,3414.4,3412.9,3.7511]
[1735661923401,2.92877,3414.4,3413.0,2.92996]
[1735661923712,0.8128,3414.9,3413.1,3.0]
[1735661923859,0.59442047,3414.7,3413.3,2.9297]
[1735661924219,2.92881,3414.4,3413.4,0.66808]
[1735661924427,0.59442047,3414.7,3413.4,0.66808]
[1735661924428,2.92867,3414.6,3413.5,0.7511]
[1735661924578,2.92851,3414.7,3413.6,2.92939]
[1735661925104,2.92861,3414.6,3413.6,2.92939]
[1735661925259,2.9287,3414.5,3413.6,0.7717948]
[1735661925959,2.92838,3414.9,3413.6,0.7717948]
[1735661926203,2.9289,3414.3,3413.6,0.7717948]
[1735661926775,3.0,3414.7,3413.5,0.7511]
[1735661926978,0.59564517,3415.1,3414.4,3.67987]
[1735661927303,5.95935017,3415.9,3413.7,2.92937]
[1735661927304,3.03184017,3415.9,3414.9,0.7511]
[1735661927509,3.03184017,3415.9,3415.3,3.36937802]
[1735661927870,3.03184017,3415.9,3414.9,7.04879802]
[1735661928066,2.92748,3415.9,3414.9,8.05367782]
[1735661928482,2.92732,3416.1,3415.0,2.92822]
[1735661928881,0.8128,3416.4,3414.9,5.12535782]
[1735661929583,2.92757,3415.8,3414.9,5.12535782]
[1735661929903,2.92757,3415.8,3414.9,1.7559798]
[1735661930107,2.92757,3415.8,3414.9,5.12535782]
[1735661931477,2.92757,3415.8,3414.9,1.7559798]
[1735661931683,2.92731,3416.1,3414.9,1.7559798]
[1735661931882,2.92731,3416.1,3414.9,0.7511]
[1735661931883,2.92785,3415.5,3414.9,0.7511]
[1735661933198,2.92773,3415.7,3414.9,0.7511]
[1735661933521,0.347731,3416.0,3414.9,0.7511]
[1735661933808,3.0,3416.1,3414.9,0.7511]
[1735661934216,2.92761,3415.8,3414.9,0.7511]
[1735661934370,2.92766,3415.7,3414.9,0.7511]
[1735661937439,0.8128,3416.4,3414.9,0.7511]
[1735661937719,2.92743,3416.0,3415.0,0.37511]
[1735661939770,3.73991,3416.4,3415.0,0.37511]
[1735661939771,2.92759,3415.8,3415.0,0.37511]
[1735661940150,2.42547214,3417.6,3415.9,2.92748]
[1735661940285,2.42547214,3417.7,3416.5,0.7959]
[1735661940647,2.92603,3417.6,3416.6,0.372292]
[1735661942436,2.92568,3418.0,3416.6,0.372292]
[1735661942647,2.92611,3417.5,3416.6,0.372292]
[1735661942949,2.92621,3417.4,3416.6,0.372292]
[1735661943315,2.92568,3418.0,3416.6,0.372292]
[1735661943316,2.92638,3417.2,3416.6,0.372292]
[1735661943624,4.3164,3417.4,3416.1,0.7959]
[1735661943932,2.92715,3416.3,3416.1,0.7959]
[1735661944132,2.92703,3416.5,3416.1,0.7959]
[1735661945227,0.55,3417.1,3415.4,2.92788]
[1735661945228,2.92715,3416.3,3415.4,0.7959]
[1735661945521,2.92715,3416.3,3415.5,1.0093358]
[1735661945886,2.92699,3416.5,3415.5,1.0093358]
[1735661946279,0.55,3417.1,3415.5,1.0093358]
[1735661946719,2.92733,3416.1,3415.4,0.7959]
[1735661947994,2.92774,3415.6,3415.4,0.7959]
[1735661948213,0.55,3416.2,3414.6,0.7959]
[1735661948532,2.92792,3415.4,3414.6,0.7959]
[1735661949097,0.7664,3416.0,3414.6,0.7959]
[1735661949300,2.92797,3415.4,3414.6,0.7959]
[1735661949500,3.36937802,3415.9,3414.6,0.7959]
[1735661949702,2.92824,3415.1,3414.6,0.7959]
[1735661950330,2.92825,3415.0,3414.6,0.7959]
[1735661950530,2.92843,3414.8,3414.6,0.7959]
[1735661950739,2.92853,3414.7,3413.8,0.8307]
[1735661950944,2.92853,3414.7,3413.9,0.376004]
[1735661951140,2.92843,3414.8,3413.9,0.376004]
[1735661952385,2.92858,3414.7,3413.9,0.376004]
[1735661952563,2.92834,3414.9,3413.8,0.8307]
[1735661952870,2.92834,3414.9,3413.1,0.8307]
[1735661952871,2.9291,3414.1,3413.1,0.8307]
[1735661953073,2.9291,3414.1,3413.0,2.92996]
[1735661953074,5.5,3416.5,3413.3,0.8307]
[1735661953254,2.92708,3416.4,3415.1,3.0]
[1735661953586,2.92666,3416.9,3415.6,0.8307]
[1735661953777,2.92671,3416.8,3415.6,0.8307]
[1735661954394,2.42547214,3416.3,3415.6,0.8307]
[1735661954690,2.42547214,3416.3,3415.7,2.92759]
[1735661955752,2.92671,3416.8,3415.7,2.92759]
[1735661956073,2.92684,3416.7,3415.7,2.92759]
[1735661956577,2.92684,3416.7,3415.6,1.206564]
[1735661956955,2.92684,3416.7,3415.6,3.75843]
[1735661957771,2.92649,3417.1,3415.9,2.9274]
[1735661958096,2.92649,3417.1,3416.0,2.92733]
[1735661958777,2.92631,3417.3,3416.2,2.92722]
[1735661958965,3.297821,3417.3,3416.2,3.603012]
[1735661959565,2.92641,3417.2,3416.2,3.603012]
[1735661960626,2.92617,3417.5,3416.2,0.675792]
[1735661960782,2.92617,3417.5,3416.3,0.8307]
[1735661961122,2.92624,3417.4,3416.4,2.92701]
[1735661961714,3.0,3417.7,3416.3,0.8307]
[1735661961895,2.92628,3417.3,3416.4,0.1506492]
[1735661962100,2.92638,3417.2,3416.4,0.1506492]
[1735661962299,2.92602,3417.6,3416.4,0.1506492]
[1735661962496,2.9264,3417.2,3416.4,0.1506492]
[1735661963182,2.92619,3417.5,3416.4,0.1506492]
[1735661963387,2.92619,3417.5,3416.4,3.0776892]
[1735661963587,2.92619,3417.5,3416.5,0.39083892]
[1735661964965,0.7888,3417.8,3416.5,0.39083892]
[1735661964966,2.92621,3417.4,3416.5,0.39083892]
[1735661967731,2.43732383,3418.9,3417.4,0.8325]
[1735661967930,2.43732383,3418.9,3417.6,0.8325]
[1735661968197,5.36225383,3418.9,3417.8,3.75835]
[1735661968981,2.92493,3418.9,3417.8,3.75835]
[1735661969194,3.7519,3419.5,3417.8,3.75835]
[1735661969401,2.92502,3418.8,3417.8,3.75835]
[1735661969905,2.92448,3419.4,3417.9,4.20187802]
[1735661970065,2.92476,3419.1,3418.1,2.92559]
[1735661970273,2.92495,3418.9,3418.0,0.46220658]
[1735661971513,45.7519,3420.0,3418.5,0.8325]
[1735661972031,2.92438,3419.6,3418.5,0.8325]